Cogmind - Beta 15 @@@ ROGUE MODE // 2025.05.24 @ 19:24:00 Player: Infomantis Result: Destroyed by P-80 Master with Gamma Rifle Performance ------------- Evolutions (8) 4000 Regions Visited (25) 5000 Robots Destroyed (281) 1405 Value Destroyed (13032) 13032 Prototype IDs (51) 1020 Alien Tech Used (2) 400 Bonus (12165) 12165 TOTAL SCORE: 37022 Bonus ------- High Alert Combat Kills 2112 Follower Combat Kills 2661 Forged Quantum Companion 1000 Network Hubs Disabled 400 Registered with UFD 300 Met Optimus in HQ 500 Met Imprinter 300 Destroyed Z-Imprinter 1000 MAIN.C Attacked Warlord 500 Warlord Defense Kills 892 Met R17 at Cetus 500 Met R17 at Research 2000 Cogmind --------- Core Integrity 0/1450 Matter 297/300 Energy 200/200 System Corruption 15% Temperature Cool (0) Movement Rolling (115) Ox1 Location -2/Quarantine Parts ------- > --- POWER (2) -------- Micro Antimatter Reactor Micro Antimatter Reactor (fused) > --- PROPULSION (6) --- Compact Wheel Compact Wheel Compact Wheel Improved Antigrav System > --- UTILITY (13) ----- Advanced Heat Sink High-capacity Storage Unit Advanced Signal Interpreter Terrain Scan Processor Improved Melee Analysis Suite Advanced Target Analyzer > --- WEAPON (2) ------- Quantum Companion > --- INVENTORY (20) --- Light Quantum Reactor Light Quantum Reactor Light Quantum Reactor Improved Antigrav System Improved Antigrav System Improved Gyrokinetic Inverter 2N-1CE's Frost Array Huge Storage Unit Small Battery (100) Small Battery (100) Zionite Biocell (600) Advanced Target Analyzer Heavy Servo Lattice Microactuators Centrium Medium Armor Plating Improved Focal Shield Gamma Rifle Compact HERF Cannon Heavy Shock Bomb Launcher Advanced Remote Datajack Peak State ------------ > --- POWER ------------ Hybrid Antimatter Reactor Micro Antimatter Reactor > --- PROPULSION ------- Antigrav Array Antigrav Array Antigrav Array > --- UTILITY ---------- Large Storage Unit Deep Structural Scanner Improved Melee Analysis Suite Improved Melee Analysis Suite Advanced Melee Analysis Suite Microactuators Experimental Transmission Jammer Improved Cloaking Device Centrium Light Armor Plating Centrium Medium Armor Plating Centrium Medium Armor Plating Graphene Brace Improved Hacking Suite > --- WEAPON ----------- Quantum Companion > --- INVENTORY -------- Light Particle Reactor Improved Antigrav System Improved Antigrav System Antigrav Array Advanced Power Amplifier 2N-1CE's Frost Array Zionite Biocell Improved Melee Analysis Suite Microactuators Advanced ECM Suite Ghost Barrier Advanced Trap Extractor Mini Smartbomb Launcher Advanced Datajack [Rating: 164] Favorites ----------- Power Micro Fission Core Engine Subdweller Power Source Power Core Micro Fission Core Reactor Light Antimatter Reactor Propulsion Flexi-carbon Leg Treads Light Treads Leg Flexi-carbon Leg Wheel Compact Wheel Hover Unit Antigrav System Flight Unit Improved Diametric Drive Utility Large Storage Unit Device Improved Transmission Jammer Storage Large Storage Unit Processor Advanced Melee Analysis Suite Hackware Improved Hacking Suite Protection Centrium Medium Armor Plating Artifact Phase Redirector Weapon Companion Sword Energy Gun Subdweller Laser Energy Cannon Subdweller Beam Cannon Ballistic Gun Light Assault Rifle Ballistic Cannon Compact Mass Driver Launcher Subdweller Shrapnel Launcher Special Weapon Improved Remote Datajack Slashing Weapon Companion Sword Piercing Weapon Makeshift Spear Special Melee Weapon Advanced Datajack Build | -11 -10 -10 -10 -9 -9 -6 -6 -6 -6 -6 -5 -5 -5 -5 -5 -4 -4 -4 -4 -4 -4 -3 -3 -2 -2 ------- Run | Yrd Mat Min Sub Rec Scr Fac Low Low Zio Dee Pro Fac Upp Upp War Pro Fac Ext Cet Arc Hub Res Tes Res Qua Slots Evolved 16 | . . . . . . 8 . . . . . 2 . . . . 2 . . . . 2 . 2 . Power 1 | . . . . . . 1 . . . . . . . . . . . . . . . . . . . Propulsion 4 | . . . . . . 3 . . . . . . . . . . . . . . . 1 . . . Utility 11 | . . . . . . 4 . . . . . 2 . . . . 2 . . . . 1 . 2 . Weapon . | . . . . . . . . . . . . . . . . . . . . . . . . . . Parts Attached 342 | 7 3 4 13 7 6 16 18 7 6 25 11 26 3 4 30 1 31 27 8 6 6 20 8 13 36 Power 50 | 1 . . 4 1 . 4 1 2 1 2 3 3 1 . 3 1 5 4 2 2 . 5 . 3 2 Engine 12 | 1 . . 4 1 . . 1 1 . . 1 1 . . . . . . . 1 . . . . 1 Core 18 | . . . . . . 4 . 1 1 . 2 2 1 . . 1 3 3 . . . . . . . Reactor 20 | . . . . . . . . . . 2 . . . . 3 . 2 1 2 1 . 5 . 3 1 Propulsion 108 | 2 . . 4 2 1 5 9 3 1 7 5 6 1 1 13 . 10 6 1 1 2 5 . 5 18 Treads 11 | 2 . . 1 1 . 1 3 1 . . . 1 . . . . 1 . . . . . . . . Leg 37 | . . . . . . 4 5 2 1 1 4 5 . 1 11 . 3 . . . . . . . . Wheel 15 | . . . 3 1 1 . 1 . . . . . . . . . . . . . . . . . 9 Hover 44 | . . . . . . . . . . 6 1 . 1 . 1 . 6 6 1 1 2 5 . 5 9 Flight 1 | . . . . . . . . . . . . . . . 1 . . . . . . . . . . Utility 155 | 2 2 1 1 3 3 7 8 1 4 13 3 16 1 3 13 . 16 14 3 2 3 10 7 5 14 Device 83 | 1 1 1 . . 2 5 4 . 2 4 1 10 1 3 6 . 11 6 2 1 2 6 5 2 7 Storage 10 | 1 1 . 1 . 1 . . . . 1 . . . . . . . 2 . . . . 1 . 2 Processor 19 | . . . . . . 1 3 . . . . 4 . . 3 . 1 1 . . . 1 1 1 3 Hackware 6 | . . . . . . . . . . . . . . . . . 1 2 . 1 . 2 . . . Protection 36 | . . . . 3 . 1 1 1 2 8 2 2 . . 4 . 3 3 1 . 1 1 . 2 1 Artifact 1 | . . . . . . . . . . . . . . . . . . . . . . . . . 1 Weapon 29 | 2 1 3 4 1 2 . . 1 . 3 . 1 . . 1 . . 3 2 1 1 . 1 . 2 Energy Gun 8 | 1 . . 1 1 . . . . . 3 . . . . 1 . . . 1 . . . . . . Energy Cannon 2 | . . . 1 . . . . . . . . . . . . . . 1 . . . . . . . Ballistic Gun 4 | 1 . 2 . . . . . . . . . . . . . . . . 1 . . . . . . Ballistic Cannon 1 | . . . . . . . . . . . . . . . . . . . . . . . 1 . . Launcher 5 | . 1 1 1 . . . . 1 . . . 1 . . . . . . . . . . . . . Special Weapon 3 | . . . . . . . . . . . . . . . . . . 2 . . . . . . 1 Impact Weapon . | . . . . . . . . . . . . . . . . . . . . . . . . . . Slashing Weapon 3 | . . . . . 1 . . . . . . . . . . . . . . . 1 . . . 1 Piercing Weapon 1 | . . . 1 . . . . . . . . . . . . . . . . . . . . . . Special Melee Weapon 2 | . . . . . 1 . . . . . . . . . . . . . . 1 . . . . . Unidentified Prototypes 35 | . . . . . 1 . . . 1 10 . 3 1 . 9 . 1 . 3 . . 1 4 . 1 Parts Lost 117 | . . . 7 . . 8 12 . . 6 1 8 . 1 6 8 3 9 . . 1 6 1 22 18 Power 20 | . . . 3 . . 2 2 . . 2 . . . . 2 2 1 2 . . . 1 . 3 . Propulsion 45 | . . . 4 . . 2 8 . . 3 . 1 . 1 1 1 . 3 . . . 2 . 7 12 Utility 51 | . . . . . . 4 2 . . 1 1 7 . . 3 5 2 4 . . 1 3 1 11 6 Weapon 1 | . . . . . . . . . . . . . . . . . . . . . . . . 1 . Highest Loss Streak 19 | . . . 2 . . 4 7 . . 6 1 2 . 1 5 5 2 2 . . 1 2 1 19 8 To Critical Strikes . | . . . . . . . . . . . . . . . . . . . . . . . . . . Average Backups 14 | 4 9 9 16 17 16 16 13 13 12 12 14 14 14 14 14 14 14 13 13 12 13 12 13 13 14 Power . | . 1 1 . 1 . . 1 . . . . 1 1 1 1 1 1 1 1 1 1 . 1 1 1 Propulsion 2 | . 1 2 1 1 . . 1 1 2 1 1 3 4 3 3 4 4 3 3 2 1 3 2 2 2 Utility 8 | . 3 3 5 6 8 11 9 10 9 10 10 8 8 9 9 7 7 7 7 7 8 6 7 8 8 Weapon 2 | 1 2 2 6 6 4 1 1 1 . 1 1 1 1 1 . . 1 . 1 1 1 1 1 . 1 Tool/Special . | . . . . . . . . . . . . . . . . . . . . . . . . . . Unused Backups 62 | . 2 2 1 2 10 3 . 2 1 4 1 . 1 . 4 . 2 4 . 1 . 4 . 5 13 Power 5 | . . . . . . . . . . . 1 . . . . . . . . . . . . . 4 Propulsion 13 | . . . . . 1 . . . . 1 . . . . 1 . 2 2 . 1 . 3 . 1 1 Utility 27 | . . 1 1 1 3 2 . 1 1 3 . . . . 3 . . 2 . . . 1 . 4 4 Weapon 12 | . 2 1 . 1 4 . . 1 . . . . . . . . . . . . . . . . 3 Tool/Special 5 | . . . . . 2 1 . . . . . . 1 . . . . . . . . . . . 1 Average Slot Usage (%) 88 | . 100 100 98 100 90 79 77 86 93 89 92 90 87 87 88 86 82 90 89 88 89 82 79 79 52 Engine 4 | . 14 14 13 14 12 2 1 9 1 . 1 4 2 . . . . . . . 5 . . . 1 Core 4 | . . . . . . 8 7 . 10 7 5 5 8 11 7 1 6 6 6 5 5 2 . . . Reactor 1 | . . . . . . . . . . 3 4 . . . 2 8 1 2 3 4 . 5 9 7 4 Treads 5 | . 28 28 9 11 12 5 4 3 6 4 . 4 2 . . . 1 . . . . . . . . Leg 10 | . . . . . . 8 15 22 26 18 21 23 23 22 25 28 17 . . . . . . . . Wheel 4 | . . . 17 16 15 11 7 2 . . . . . . . . . . . . . . . . 11 Hover 5 | . . . . . . . . . . 9 10 . 2 5 2 . 6 23 21 21 21 17 14 13 4 Device 13 | . 14 14 14 1 1 20 13 8 4 4 12 20 12 17 11 17 20 27 25 25 25 15 21 24 10 Storage 7 | . 14 14 14 14 13 6 6 6 6 6 6 5 5 5 5 5 5 5 5 5 5 4 4 3 3 Processor 7 | . . . . . . 1 7 20 17 13 13 10 15 11 13 8 3 1 5 5 5 8 9 12 10 Hackware 1 | . . . . . . . . . . . . . . . . . 2 7 5 5 5 8 4 3 . Protection 7 | . . . . 12 11 5 4 3 9 14 5 4 5 5 9 7 9 7 10 10 10 11 10 6 . Energy Gun 2 | . 14 14 5 12 7 . . . . . . . . . . . . . . . . . . . . Slashing Weapon 4 | . . . . . 5 6 5 6 6 6 6 5 5 5 5 5 5 5 5 5 5 4 4 4 4 Piercing Weapon 2 | . . . 12 14 7 . . . . . . . . . . . . . . . . . . . . Peak Build Rating 164 | 7 9 9 17 17 23 62 57 59 66 76 80 94 95 96 111 111 136 128 124 124 121 154 157 164 103 Average Rating 67 | 5 7 8 14 15 15 43 52 54 60 65 74 85 93 93 98 101 114 113 114 118 111 135 150 150 60 On Entrance 69 | . 7 8 8 17 15 22 53 46 59 64 72 71 92 93 94 111 80 129 109 117 115 111 150 151 20 Naked Turns . | . . . . . . . . . . . . . . . . . . . . . . . . . . Heaviest Build 109 | 12 17 17 62 56 54 70 53 46 61 61 60 72 69 70 73 61 69 76 68 62 62 66 64 70 109 Greatest Support 130 | 40 40 40 40 40 28 60 45 65 70 70 80 87 82 82 125 130 130 79 68 65 66 78 78 78 84 Greatest Overweight (x) 5 | 1 . . 5 3 3 4 4 1 . 1 . . . 1 . . 1 1 1 5 . . . . 5 Average Overweight (x) . | . . . 4 2 2 1 1 . . . . . . . . . . . . 2 . . . . . Largest Inventory Capacity 25 | 8 10 10 20 20 20 20 15 15 15 15 15 15 15 15 15 15 15 15 15 15 15 15 15 15 25 Average Capacity 15 | 7 9 10 19 20 19 18 15 15 15 15 15 15 15 15 15 15 15 15 15 15 15 15 15 14 20 Most Carried 20 | 6 10 10 20 20 20 20 15 15 15 15 15 15 15 15 15 15 15 15 15 15 15 15 15 15 20 Average Carried 15 | 4 9 9 18 19 18 17 14 14 14 14 14 14 14 14 14 14 14 14 15 14 14 14 14 14 14 Final Capacity 20 | 8 10 10 20 20 20 15 15 15 15 15 15 15 15 15 15 15 15 15 15 15 15 15 15 5 20 Final Carried 20 | 6 10 10 20 20 20 15 15 15 15 15 15 15 14 15 15 12 15 15 15 15 15 15 14 5 20 Class Distribution -------------------- 57% | Scavenger-Mutant 25% | Mutant 8% | Infiltrator-Mutant 6% | Derelict-Mutant Dominant Class ---------------- Mutant | -10/Materials Mutant | -10/Mines Mutant | -10/Subcaves Scavenger-Mutant | -9/Recycling Scavenger-Mutant | -9/Scraptown Scavenger-Mutant | -6/Factory Scavenger-Mutant | -6/Lower Caves Scavenger-Mutant | -6/Lower Caves Derelict-Mutant | -6/Zion Scavenger-Mutant | -6/Deep Caves Scavenger-Mutant | -5/Proximity Caves Scavenger-Mutant | -5/Factory Mutant | -5/Upper Caves Infiltrator-Mutant | -5/Upper Caves Mutant | -5/Warlord Scavenger-Mutant | -4/Proximity Caves Scavenger-Mutant | -4/Factory Scavenger-Mutant | -4/Extension Scavenger-Mutant | -4/Cetus Scavenger-Mutant | -4/Archives Scavenger-Mutant | -4/Hub_04(d) Scavenger-Mutant | -3/Research Scavenger-Mutant | -3/Testing Infiltrator-Mutant | -2/Research Scavenger-Mutant | -2/Quarantine Resources | -11 -10 -10 -10 -9 -9 -6 -6 -6 -6 -6 -5 -5 -5 -5 -5 -4 -4 -4 -4 -4 -4 -3 -3 -2 -2 ----------- Run | Yrd Mat Min Sub Rec Scr Fac Low Low Zio Dee Pro Fac Upp Upp War Pro Fac Ext Cet Arc Hub Res Tes Res Qua Matter Collected 6574 | 282 76 193 405 79 90 180 311 125 157 465 280 386 109 135 474 193 419 786 180 88 139 290 184 70 478 Remotely . | . . . . . . . . . . . . . . . . . . . . . . . . . . Salvage Created 15199 | 189 241 149 578 167 . 726 499 81 . 534 561 1105 253 638 398 323 715 2010 82 611 770 1637 360 1468 1104 Parts 703 | 21 15 25 51 16 . 34 14 2 . 32 15 49 18 28 22 11 29 79 3 32 27 61 22 39 58 Haulers Intercepted 7 | . 2 . . . . 1 . . . . . 1 . . . . 1 2 . . . . . . . Recyclers Shooed . | . . . . . . . . . . . . . . . . . . . . . . . . . . Parts Field Recycled . | . . . . . . . . . . . . . . . . . . . . . . . . . . Retrieved Matter . | . . . . . . . . . . . . . . . . . . . . . . . . . . Parts Self-Destructed 105 | . . . 11 . . . 12 1 1 . 25 . 15 28 . 12 . . . . . . . . . Prevented 9 | . . . . . . . 5 . . . 4 . . . . . . . . . . . . . . Kills | -11 -10 -10 -10 -9 -9 -6 -6 -6 -6 -6 -5 -5 -5 -5 -5 -4 -4 -4 -4 -4 -4 -3 -3 -2 -2 ------- Run | Yrd Mat Min Sub Rec Scr Fac Low Low Zio Dee Pro Fac Upp Upp War Pro Fac Ext Cet Arc Hub Res Tes Res Qua Combat Hostiles Destroyed 226 | . 7 9 16 3 . 9 10 3 . 12 7 19 3 15 10 10 9 21 1 3 11 17 6 14 11 Melee 159 | . . . 10 3 . 9 7 . . 11 7 18 3 15 7 4 5 15 1 . 11 14 4 6 9 Guns 11 | . 4 6 1 . . . . . . . . . . . . . . . . . . . . . . Cannons 16 | . . . 2 . . . . . . . . . . . . . 1 3 . 2 . 2 1 5 . AOE 30 | . 3 3 3 . . . 3 3 . 1 . 1 . . 3 6 2 2 . . . . . . . Classes Destroyed 26 | 2 4 1 3 . . 3 2 1 . 2 . . . . 2 1 . 4 . . . . . 1 . Worker 8 | . . 1 . . . . . . . . . 1 . . . . . . . . . 4 . . 2 Builder 3 | . . . . . . . . . . . . . . . . . . 1 . . . . . . 2 Tunneler 7 | 5 . 1 . . . . . . . . . . . . . . . . . . 1 . . . . Hauler 7 | . 2 . . . . 1 . . . . . 1 . . . . 1 2 . . . . . . . Recycler 11 | 1 . . . . . 1 . . . . . . . . . . . 1 . . . 3 . 2 3 Minesweeper 1 | . . . . . . . 1 . . . . . . . . . . . . . . . . . . Mechanic 1 | . . . . . . . . . . . . . . . . . . . . . . . . 1 . Operator 12 | . . . . . . . . . . . . . . . . . . 2 . 9 . 1 . . . Watcher 8 | . 1 . . . . . . . . . . . . . . . 1 . 1 . . 1 1 1 2 Swarmer 50 | . 3 9 4 . . . 2 3 . . 1 4 . 8 . 5 . . . . . 3 3 . 5 Saboteur 4 | . . . . . . . . . . . . . . . 3 . . . . . . . 1 . . Grunt 78 | . 4 . 1 . . 5 6 . . . 4 5 . 6 5 . 6 8 . . 9 8 2 8 1 Brawler 2 | . . . . . . . . . . . . . . . . 2 . . . . . . . . . Duelist 2 | . . . . . . . 1 . . . . . . . . . . 1 . . . . . . . Protector 1 | . . . . . . . . . . . . . . . 1 . . . . . . . . . . Sentry 26 | . . . 1 3 . . 1 . . . 1 2 1 1 . 1 1 8 . 3 1 1 . 1 . Demolisher 1 | . . . . . . . . . . . . . . . . . . 1 . . . . . . . Specialist 3 | . . . . . . 2 . . . . . . . . . . . 1 . . . . . . . Hunter 10 | . . . . . . 1 . . . . 1 2 . . . 2 . 1 . . . . . 3 . Programmer 23 | . . . . . . 1 . . . . . 6 2 . 1 . 2 . . . 1 3 . 2 5 Behemoth 3 | . . . . . . . . . . . . . . . . . . 1 . . . 2 . . . Cetus Guard 1 | . . . . . . . . . . . . . . . . . . . 1 . . . . . . Artisan 1 | . . . 1 . . . . . . . . . . . . . . . . . . . . . . Subdweller 10 | . . . 10 . . . . . . . . . . . . . . . . . . . . . . Z-Light 8 | . . . . . . . . . . 8 . . . . . . . . . . . . . . . Samaritan 1 | . . . . . . . . 1 . . . . . . . . . . . . . . . . . Assembled 3 | . . . . . . . . . . 3 . . . . . . . . . . . . . . . Best Kill Streak 11 | 4 5 4 2 2 . 2 4 3 . 5 3 4 2 4 4 9 4 3 1 8 4 8 3 11 8 Combat Bots Only 9 | . 3 3 2 2 . 2 4 3 . 5 3 4 2 4 4 9 4 3 1 3 3 5 3 7 7 Max Kills in Single Turn 3 | 1 2 3 1 1 . 1 3 2 . 1 1 1 1 1 3 3 1 2 1 2 1 1 2 1 2 Gunslinging . | . . . . . . . . . . . . . . . . . . . . . . . . . . Exploded 3 | . 1 2 1 . . . 3 2 . 1 . 1 . . 3 3 1 1 . . . . . . . Melee 2 | . . . 1 1 . 1 1 . . 1 1 1 1 1 1 1 1 1 1 . 1 1 1 1 2 Uniques/NPCs Destroyed 1 | . . . . . . . . . . 1 . . . . . . . . . . . . . . . Z-Imprinter (-6/Deep Caves) Combat | -11 -10 -10 -10 -9 -9 -6 -6 -6 -6 -6 -5 -5 -5 -5 -5 -4 -4 -4 -4 -4 -4 -3 -3 -2 -2 -------- Run | Yrd Mat Min Sub Rec Scr Fac Low Low Zio Dee Pro Fac Upp Upp War Pro Fac Ext Cet Arc Hub Res Tes Res Qua Hostile Shots Fired 1714 | . 19 32 62 4 . 105 99 . . 68 34 168 29 87 118 106 82 127 . 7 37 158 52 227 93 Missed 546 | . 2 6 21 1 . 29 16 . . 19 19 51 16 26 41 34 23 37 . 6 15 58 26 74 26 Deflected 21 | . . . . . . . . . . . . . . . . . 5 2 . . . 4 . 8 2 Hits 1168 | . 17 26 41 3 . 76 83 . . 49 15 117 13 61 77 72 59 90 . 1 22 100 26 153 67 Melee 21 | . . . . . . . . . . 1 . . . . 5 4 . 6 . . 2 . 1 2 . Projectile 1147 | . 17 26 41 3 . 76 83 . . 48 15 117 13 61 72 68 59 84 . 1 20 100 25 151 67 AOE 3 | . . . 2 . . . . . . . . . . . 1 . . . . . . . . . . Critical Strikes 54 | . . 1 2 . . 4 3 . . . 2 8 . . 7 4 2 5 . . 3 4 . 7 2 Actively Blocked 19 | . . . . . . . . . . . . . . . . . 1 5 . . 3 4 . 6 . Part Disruptions 2 | . . . . . . 2 . . . . . . . . . . . . . . . . . . . Damage Taken 23921 | . 138 205 724 45 . 1312 1765 . . 1427 370 2299 165 837 1829 1291 1134 2013 48 39 584 2167 587 3432 1510 Core 3959 | . 20 82 79 15 . 151 311 . . 206 60 287 . 26 215 120 137 285 5 16 58 401 24 1137 324 Absorbed by Shields 276 | . . . . . . 37 . . . . . . . . . . . 239 . . . . . . . Redirected to Shielding 242 | . . . . . . . . . . 36 . . . . 49 45 . . . . . . . . 112 Ignored by Resistances 502 | . . . . . . . . . . . . . . 271 15 72 83 . . . . . . 61 . Regen/Repaired (Parts) 2807 | . . . . . 226 . . . 464 . . 74 . . 314 . 371 . . . . 772 . 529 57 Core Remaining (%) 48 | 100 . . . . 21 . . . . . 14 . . . . 35 . . . . 56 . 67 . . Volleys Fired 137 | 12 19 17 18 . . . . 2 . 4 . . . . 2 6 3 53 . . . . . 1 . Largest 2 | 2 2 2 2 . . . . 1 . 1 . . . . 1 1 1 1 . . . . . 1 . Hottest 83 | 70 70 70 83 . . . . 40 . 40 . . . . 80 80 80 80 . . . . . 80 . Shots Fired 179 | 23 34 31 20 . . . . 2 . 4 . . . . 2 6 3 53 . . . . . 1 . Gun 85 | 23 30 28 3 . . . . . . . . . . . 1 . . . . . . . . . . Cannon 10 | . . . 10 . . . . . . . . . . . . . . . . . . . . . . Launcher 34 | . 4 3 7 . . . . 2 . 4 . . . . 1 6 3 3 . . . . . 1 . Special 50 | . . . . . . . . . . . . . . . . . . 50 . . . . . . . Kinetic 52 | 12 15 14 5 . . . . 2 . 4 . . . . . . . . . . . . . . . Thermal 53 | 11 15 14 13 . . . . . . . . . . . . . . . . . . . . . . Explosive 23 | . 4 3 2 . . . . . . . . . . . 1 6 3 3 . . . . . 1 . Electromagnetic . | . . . . . . . . . . . . . . . . . . . . . . . . . . Entropic 1 | . . . . . . . . . . . . . . . 1 . . . . . . . . . . Robot Hit Streak 30 | 6 6 4 6 . . . . . . . . . . . . . . 29 . . . . . 30 . Robot Miss Streak 4 | 2 2 3 4 . . . . . . . . . . . . . . 1 . . . . . . . Penetration Max . | . . . . . . . . . . . . . . . . . . . . . . . . . . Secondary Targets . | . . . . . . . . . . . . . . . . . . . . . . . . . . Autonomous 34 | . . . . . . . . . . . . . . . . . 3 6 . 3 . 6 2 11 3 Shots Hit Robots 718 | 15 22 14 40 5 1 43 22 2 . 31 35 72 5 36 22 13 27 117 6 10 26 51 24 40 39 Core Hits 329 | 9 13 13 21 3 . 14 11 4 . 14 12 29 4 16 14 21 16 32 3 6 13 24 7 16 14 Critical Kills . | . . . . . . . . . . . . . . . . . . . . . . . . . . Critical Parts Destroyed . | . . . . . . . . . . . . . . . . . . . . . . . . . . Critical Strikes 26 | 2 . 1 4 1 . . . . . 2 . . . 2 . . 6 4 . . . . . 2 2 Burn 3 | 2 . 1 . . . . . . . . . . . . . . . . . . . . . . . Impale 5 | . . . 4 1 . . . . . . . . . . . . . . . . . . . . . Melee Attacks 806 | . . . 41 5 1 59 35 2 5 37 40 99 8 41 26 17 41 103 10 10 34 69 32 42 49 Impact . | . . . . . . . . . . . . . . . . . . . . . . . . . . Slashing 757 | . . . . . . 59 35 2 5 37 40 99 8 41 26 17 41 103 10 10 33 68 32 42 49 Piercing 46 | . . . 41 5 . . . . . . . . . . . . . . . . . . . . . Sneak Attacks 76 | . . . 3 3 1 6 1 2 . . 1 5 1 2 2 . 2 10 . 9 8 10 . 3 7 Combat Hostiles 24 | . . . . 2 . 3 . . . . 1 . 1 2 2 . . 5 . . 6 2 . . . Follow-up Attacks 20 | . . . . . . . 2 . . 3 1 2 . 3 2 2 . 2 . . . . 1 . 2 Damage Inflicted 43245 | 172 486 343 1586 267 . 1871 1419 394 . 1620 1893 3614 272 1551 1318 1381 2258 5448 373 1674 1867 4330 2322 3837 2949 Guns 558 | 172 192 160 34 . . . . . . . . . . . . . . . . . . . . . . Cannons 3051 | . . . 142 . . . . . . . . . . . . . 244 516 . 253 . 514 165 982 235 Explosions 3822 | . 289 183 489 . . . 482 222 . 182 . 198 . . 290 855 361 143 . . . . . 128 . Melee 35803 | . . . 921 267 . 1871 937 172 . 1438 1893 3416 272 1551 1028 526 1648 4789 373 1421 1867 3816 2157 2726 2714 Ramming 11 | . 5 . . . . . . . . . . . . . . . 5 . . . . . . 1 . Kinetic 985 | 57 91 60 373 . . . . 222 . 182 . . . . . . . . . . . . . . . Thermal 492 | 115 101 100 176 . . . . . . . . . . . . . . . . . . . . . . Explosive 2563 | . 289 183 116 . . . . . . . . 198 . . 290 855 361 143 . . . . . 128 . Electromagnetic . | . . . . . . . . . . . . . . . . . . . . . . . . . . Impact . | . . . . . . . . . . . . . . . . . . . . . . . . . . Slashing 34615 | . . . . . . 1871 937 172 . 1438 1893 3416 272 1551 1028 526 1648 4789 373 1421 1867 3816 2157 2726 2714 Piercing 1188 | . . . 921 267 . . . . . . . . . . . . . . . . . . . . . Entropic 482 | . . . . . . . 482 . . . . . . . . . . . . . . . . . . Phasic 2909 | . . . . . . . . . . . . . . . . . 244 516 . 253 . 514 165 982 235 Highest Corruption 18 | . . . . . . 4 4 4 4 . . 11 5 . 12 18 1 2 2 2 2 1 1 5 12 Average Corruption 4 | . . . . . . 3 4 4 4 . . 5 2 . 11 13 1 1 2 1 2 1 1 2 7 Corruption Purged 14 | . . . . . . . . . . . . 7 5 . . . . . . 2 . . . . . Corruption Blocked . | . . . . . . . . . . . . . . . . . . . . . . . . . . Effects 171 | . . . . . . 6 37 14 1 . . 20 1 . 12 28 . 4 3 1 3 5 3 3 30 Message Errors 37 | . . . . . . 2 4 3 . . . 5 . . 1 11 . 1 1 . . 2 . . 7 Matter Fused 53 | . . . . . . 1 11 4 1 . . 6 1 . 6 5 . 2 1 . 1 3 1 . 10 Heat Flow Errors 24 | . . . . . . . 7 . . . . 3 . . 3 4 . . . . . . . 1 6 Energy Discharges 17 | . . . . . . . 5 2 . . . 1 . . 1 2 . 1 . 1 1 . 1 . 2 Parts Rejected 2 | . . . . . . . . . . . . 1 . . . 1 . . . . . . . . . Parts Fused 2 | . . . . . . . . 1 . . . . . . . . . . . . . . . . 1 Data Loss (minor) 20 | . . . . . . 3 5 3 . . . 2 . . . 2 . . 1 . . . . 2 2 Data Loss (major) 9 | . . . . . . . 3 . . . . . . . . 3 . . . . 1 . . . 2 Alerts 6 | . . . . . . . 2 1 . . . 2 . . . . . . . . . . 1 . . Misdirections 1 | . . . . . . . . . . . . . . . 1 . . . . . . . . . . Overload Shots . | . . . . . . . . . . . . . . . . . . . . . . . . . . Overflow Damage 4549 | . . 7 62 78 . 182 277 10 . 99 84 161 . 78 5 38 95 338 . 618 291 764 361 354 647 Projectiles 270 | . . . 10 . . . . . . . . . . . . . . 37 . . . 62 32 54 75 Explosions 192 | . . 7 14 . . . 131 . . . . . . . . 38 . . . . . . . 2 . Melee 4087 | . . . 38 78 . 182 146 10 . 99 84 161 . 78 5 . 95 301 . 618 291 702 329 298 572 Knockbacks . | . . . . . . . . . . . . . . . . . . . . . . . . . . Impact . | . . . . . . . . . . . . . . . . . . . . . . . . . . Kinetic . | . . . . . . . . . . . . . . . . . . . . . . . . . . Secondary . | . . . . . . . . . . . . . . . . . . . . . . . . . . Self-Inflicted Damage 338 | . . . . . . . 168 . . . . 111 . . . . . . . . . . . 59 . Shots 3 | . . . . . . . 1 . . . . 1 . . . . . . . . . . . 1 . Rammed 2 | . 1 . . . . . . . . . . . . . . . . . . . . . . 1 . Targets Rammed 3 | . 1 . . . . . . . . . . . . . . . 1 . . . . . . 1 . Kicked 1 | . . . . . . . . . . . . . . . . . 1 . . . . . . . . Crushed . | . . . . . . . . . . . . . . . . . . . . . . . . . . Highest Temperature 403 | 60 100 90 7 . . . 240 . . 75 1 260 . 7 143 268 403 . . . . 14 4 252 195 Average Temperature 53 | 24 40 30 4 . . . 95 . . 20 1 94 . 7 53 90 152 . . . . 6 3 56 86 Received Heat Transfer 4302 | . 30 . 99 18 . 468 630 . . 423 120 328 . 243 541 63 201 319 . . 162 192 69 378 18 Effects 1 | . . . . . . . . . . . . . . . . . 1 . . . . . . . . Short Circuit 1 | . . . . . . . . . . . . . . . . . 1 . . . . . . . . Siege Activations . | . . . . . . . . . . . . . . . . . . . . . . . . . . Martial Activations . | . . . . . . . . . . . . . . . . . . . . . . . . . . Shielding Activations . | . . . . . . . . . . . . . . . . . . . . . . . . . . Robots Disrupted 4 | . . . . . . . . . . . . . . . . . 1 1 . . . 2 . . . Combat Hostiles 4 | . . . . . . . . . . . . . . . . . 1 1 . . . 2 . . . Robots Corrupted . | . . . . . . . . . . . . . . . . . . . . . . . . . . Combat Hostiles . | . . . . . . . . . . . . . . . . . . . . . . . . . . Parts Fried 5 | . . . . . . . . . . . . . . . . . . . . . . . . 5 . Impact Corruptions . | . . . . . . . . . . . . . . . . . . . . . . . . . . Robots Melted . | . . . . . . . . . . . . . . . . . . . . . . . . . . Combat Hostiles . | . . . . . . . . . . . . . . . . . . . . . . . . . . Parts Melted 5 | 1 1 . . . . . . . . . . . . . 1 . . 2 . . . . . . . Heat Transferred 1394 | 481 296 370 247 . . . . . . . . . . . . . . . . . . . . . . Parts Sabotaged 2 | . . . . . . . . . . . . . . . 2 . . . . . . . . . . Parts Stolen . | . . . . . . . . . . . . . . . . . . . . . . . . . . Parts Stripped 69 | . . . . . . . . . . . . . . . . . 7 12 . 8 . 12 . 16 14 Power Chain Reactions 1 | . . . . . . . . . . . . . . . . . . . . . . . . 1 . Alert | -11 -10 -10 -10 -9 -9 -6 -6 -6 -6 -6 -5 -5 -5 -5 -5 -4 -4 -4 -4 -4 -4 -3 -3 -2 -2 ------- Run | Yrd Mat Min Sub Rec Scr Fac Low Low Zio Dee Pro Fac Upp Upp War Pro Fac Ext Cet Arc Hub Res Tes Res Qua Maximum Alert Level 4 | . . . . . . . . . . . . 1 . . . . 3 4 3 2 3 3 2 2 1 Low Security (%) 52 | 100 100 100 . 100 . 100 . . . . . 83 . . . . . . . 40 6 . . . 68 Level 1 11 | . . . . . . . . . . . . 16 . . . . . . . 31 27 . . 26 31 Level 2 14 | . . . . . . . . . . . . . . . . . . 24 . 27 27 13 100 73 . Level 3 17 | . . . . . . . . . . . . . . . . . 100 28 100 . 38 86 . . . Level 4 3 | . . . . . . . . . . . . . . . . . . 47 . . . . . . . Level 5 . | . . . . . . . . . . . . . . . . . . . . . . . . . . High Security . | . . . . . . . . . . . . . . . . . . . . . . . . . . Max Security . | . . . . . . . . . . . . . . . . . . . . . . . . . . Peak Influence 1437 | 10 132 97 . 175 . 94 . . . . . 238 . . . . 992 1437 992 565 870 1089 652 650 324 Initial 949 | . . 39 . 136 . . . . . . . . . . . . 949 411 748 380 19 426 536 315 315 Average 343 | 1 31 30 . 72 . 32 . . . . . 83 . . . . 866 998 894 276 550 909 542 458 158 Influence Increases 11582 | 30 266 257 390 260 . 302 215 74 . . 245 694 75 325 185 220 1598 1943 344 265 1234 1118 415 704 423 Destroy 0b10 Robot/C 5120 | . 140 180 120 60 . 180 200 60 . . 140 380 60 300 180 200 320 860 160 80 460 420 120 280 220 Destroy 0b10 Robot/NC 370 | 30 15 10 . . . 10 5 . . . 10 10 5 . 5 . 25 50 10 45 10 55 10 20 45 Destroy Leader 712 | . 36 30 . . . 52 10 10 . . 20 102 10 10 . 20 88 62 . . 80 84 12 42 44 Allied During Kill 1793 | . . . . . . . . 4 . . . . . . . . 75 693 170 125 522 204 . . . Trap Triggered on 0b10 30 | . . . . . . . . . . . . . . . . . . . . . . . . 30 . Successful Hack 640 | . 4 . . 20 . . . . . . . 27 . . . . 16 20 . . 31 96 228 132 66 Select Force Hacks 290 | . 30 . . 180 . . . . . . . 30 . . . . . . . . . . . 50 . Disable Machine 315 | . 15 . . . . 15 . . . . . 30 . . . . 15 75 . 15 60 15 45 . 30 Anti-Garrison Action 200 | . . . . . . . . . . . . . . . . . . . . . . 200 . . . Destroy Structure 297 | . 11 22 . . . . . . . . . 40 . . . . 54 78 4 . 26 14 . 45 3 Advance Influence 900 | . . . . . . . . . . . . . . . . . 900 . . . . . . . . Partial Spotted 120 | . . . . . . . . . . . . . . . . . . 45 . . 45 . . 30 . Lose Combat Pursuer 795 | . 15 15 270 . . 45 . . . . 75 75 . 15 . . 105 60 . . . 30 . 75 15 Influence Decreases 11537 | 30 166 357 104 546 . 286 220 85 . . 245 477 292 325 178 149 835 1448 728 1161 477 977 808 704 939 Entered New Map 3263 | . . 61 . 150 . . 7 3 . . . . 82 . . 7 29 430 588 572 37 387 418 246 246 Time Decay 5823 | 30 166 296 84 396 . 216 133 82 . . 235 407 210 315 124 92 356 398 120 589 310 380 230 238 416 Search Patrol Dispatched 300 | . . . . . . . . . . . . . . . . . 300 . . . . . . . . Lost Part 964 | . . . 20 . . 70 80 . . . 10 70 . 10 54 50 30 90 . . 10 60 10 220 180 Lost Ally 790 | . . . . . . . . . . . . . . . . . 120 380 20 . 120 150 . . . Purge Threat 397 | . . . . . . . . . . . . . . . . . . 150 . . . . 150 . 97 Squads Dispatched 58 | . 4 . . . . 5 . . . . . 10 . 1 . . 8 5 . . 4 9 3 6 3 Investigation 23 | . 1 . . . . . . . . . . 4 . 1 . . 3 1 . . 2 7 1 3 . Extermination 12 | . . . . . . 1 . . . . . 3 . . . . 2 . . . 1 . 1 1 3 Reinforcement 16 | . 3 . . . . 4 . . . . . 2 . . . . 1 2 . . 1 2 . 1 . Assault 6 | . . . . . . . . . . . . . . . . . 2 2 . . . . 1 1 . Garrison 1 | . . . . . . . . . . . . 1 . . . . . . . . . . . . . Intercept . | . . . . . . . . . . . . . . . . . . . . . . . . . . Searches Triggered 2 | . . . . . . . . . . . . . . . . . 2 . . . . . . . . Construction Impeded 1 | . . . . . . . . . . . . . . . . . . 1 . . . . . . . Haulers Reinforced 3 | . . . . . . 1 . . . . . 2 . . . . . . . . . . . . . Active Scanning Responses . | . . . . . . . . . . . . . . . . . . . . . . . . . . Cargo Convoy Interrupts . | . . . . . . . . . . . . . . . . . . . . . . . . . . Stealth | -11 -10 -10 -10 -9 -9 -6 -6 -6 -6 -6 -5 -5 -5 -5 -5 -4 -4 -4 -4 -4 -4 -3 -3 -2 -2 --------- Run | Yrd Mat Min Sub Rec Scr Fac Low Low Zio Dee Pro Fac Upp Upp War Pro Fac Ext Cet Arc Hub Res Tes Res Qua Distress Signals 19 | . 1 . . . . 1 . . . . . 1 . . . . 2 5 2 . 1 6 . . . Communications Jammed 134 | . . . . . . . . . . . . 25 . . . 2 1 7 34 1 8 21 1 34 . Distress Signals 131 | . . . . . . . . . . . . 25 . . . . 1 7 34 1 7 21 1 34 . Times Spotted 451 | . 14 10 26 2 . 16 12 3 . 12 15 33 3 15 58 16 22 47 7 3 20 36 19 42 20 Peak Tracking Total 19 | . 4 3 6 1 . 5 7 3 . 5 5 5 2 4 19 5 5 8 4 3 4 6 8 16 7 Tactical Retreats 31 | . 1 1 4 . . 2 . . . . 3 4 . 1 . . 4 3 . . . 2 2 3 1 Traps | -11 -10 -10 -10 -9 -9 -6 -6 -6 -6 -6 -5 -5 -5 -5 -5 -4 -4 -4 -4 -4 -4 -3 -3 -2 -2 ------- Run | Yrd Mat Min Sub Rec Scr Fac Low Low Zio Dee Pro Fac Upp Upp War Pro Fac Ext Cet Arc Hub Res Tes Res Qua Traps Triggered 12 | . . . . . . 2 1 . . . . . . . . . 2 3 . . 1 1 . 1 1 Indirectly . | . . . . . . . . . . . . . . . . . . . . . . . . . . Trap Hack Attempts 30 | . . . . . . . . . . . . . . . . . . . . . 18 12 . . . Triggered . | . . . . . . . . . . . . . . . . . . . . . . . . . . Disarmed 1 | . . . . . . . . . . . . . . . . . . . . . . 1 . . . Reprogrammed 10 | . . . . . . . . . . . . . . . . . . . . . 4 . . 6 . Reused 6 | . . . . . . . 2 . . 1 . . . . . . . . . . . . . 3 . Traps Extracted 4 | . . . . . . . . . . . . . . . . . . . . . 4 . . . . Installed 5 | . . . . . . 1 3 . . 1 . . . . . . . . . . . . . . . Triggered 5 | . . . . . . . 2 . . . . . . . . . . . . . . . . 3 . Most Traps Carried 5 | . . 1 1 1 3 3 5 1 1 1 1 1 1 1 1 1 1 1 1 1 5 5 5 5 . Machines | -11 -10 -10 -10 -9 -9 -6 -6 -6 -6 -6 -5 -5 -5 -5 -5 -4 -4 -4 -4 -4 -4 -3 -3 -2 -2 ---------- Run | Yrd Mat Min Sub Rec Scr Fac Low Low Zio Dee Pro Fac Upp Upp War Pro Fac Ext Cet Arc Hub Res Tes Res Qua Machines Disabled 30 | . 1 . 3 . . 1 1 . . . . 2 1 . 1 . 1 8 . 1 4 1 3 . 2 Max in Single Turn 3 | . 1 . 3 . . 1 1 . . . . 1 1 . 1 . 1 1 . . . 1 1 . 1 Garrison Access 6 | . . . . . . . . . . . . 1 . . . . . . . . 1 2 1 1 . Network Hub 2 | . . . . . . . . . . . . . . . . . . . . . 2 . . . . Machines Repaired . | . . . . . . . . . . . . . . . . . . . . . . . . . . Machines Dismantled . | . . . . . . . . . . . . . . . . . . . . . . . . . . Machines Sabotaged . | . . . . . . . . . . . . . . . . . . . . . . . . . . Overloaded Fab Kills 4 | . . . . . . . . . . . . . . . . . . . . . . . . 4 . Hacking | -11 -10 -10 -10 -9 -9 -6 -6 -6 -6 -6 -5 -5 -5 -5 -5 -4 -4 -4 -4 -4 -4 -3 -3 -2 -2 --------- Run | Yrd Mat Min Sub Rec Scr Fac Low Low Zio Dee Pro Fac Upp Upp War Pro Fac Ext Cet Arc Hub Res Tes Res Qua Machines Accessed 104 | . 4 . . 13 4 . . 1 . . . 10 1 2 4 . 6 14 1 . 10 11 10 9 4 Terminals 57 | . 3 . . 6 . . . 1 . . . 4 . 1 . . 3 14 1 . 9 3 5 4 3 Fabricators 3 | . . . . . . . . . . . . . . . . . . . . . . 1 . 2 . Repair Stations 9 | . . . . . . . . . . . . 1 . . . . 1 . . . . 3 2 1 1 Recycling Units 15 | . 1 . . 6 . . . . . . . 3 . . . . 2 . . . . 2 . 1 . Scanalyzers 3 | . . . . . . . . . . . . 1 . . . . . . . . . . 2 . . Garrison Access 6 | . . . . . . . . . . . . 1 . . . . . . . . 1 2 1 1 . Total Hacks 315 | . 9 . . 26 26 . . 2 . . . 23 1 4 7 . 17 29 2 . 24 36 57 35 17 Successful 172 | . 4 . . 14 26 . . 2 . . . 12 1 4 7 . 9 17 . . 10 17 23 16 10 Failed 142 | . 5 . . 12 . . . . . . . 11 . . . . 8 12 2 . 14 18 34 19 7 Catastrophic 27 | . 1 . . 2 . . . . . . . 2 . . . . 2 1 . . 2 1 7 5 4 Database Lockouts 1 | . . . . . . . . . . . . . . . . . . . . . . 1 . . . Manual 120 | . 6 . . 23 . . . . 4 . . 12 . . . . 9 9 . . 20 14 6 10 7 Terminals 190 | . 8 . . 19 . . . 2 . . . 12 . 3 . . 10 29 2 . 21 13 36 22 13 Fabricators 11 | . . . . . . . . . . . . . . . . . . . . . . 4 . 7 . Repair Stations 33 | . . . . . . . . . . . . 2 . . . . 3 . . . . 13 7 4 4 Recycling Units 17 | . 1 . . 6 . . . . . . . 3 . . . . 4 . . . . 2 . 1 . Scanalyzers 15 | . . . . . . . . . . . . 4 . . . . . . . . . . 11 . . Garrison Access 13 | . . . . . . . . . . . . 2 . . . . . . . . 3 4 3 1 . Terminal Hacks 90 | . . . . 5 26 . . 2 . . . 3 1 4 7 . 1 11 . . 1 3 12 8 6 Record 40 | . . . . 3 24 . . 2 . . . . 1 3 6 . . . . . . . 1 . . Part Schematic 3 | . . . . . . . . . . . . . . . . . . . . . . 2 1 . . Robot Schematic 2 | . . . . 1 . . . . . . . . . . . . . . . . . . 1 . . Robot Analysis 2 | . . . . 1 . . . . . . . . . . . . . . . . . . . 1 . Prototype ID Bank 1 | . . . . . . . . . . . . . . . . . . . . . . . 1 . . Open Door 12 | . . . . . 1 . . . . . . . . 1 1 . 1 8 . . . . . . . Level Access Points 2 | . . . . . . . . . . . . . . . . . . . . . . . 1 . 1 Branch Access Points 1 | . . . . . . . . . . . . . . . . . . . . . . . . 1 . Machine Index 1 | . . . . . . . . . . . . . . . . . . . . . . . 1 . . Terminal Index 4 | . . . . . . . . . . . . . . . . . . 1 . . 1 . . 1 1 Fabricator Index 1 | . . . . . . . . . . . . . . . . . . . . . . . . 1 . Repair Station Index 1 | . . . . . . . . . . . . . . . . . . . . . . 1 . . . Recycling Unit Index 2 | . . . . . . . . . . . . 1 . . . . . . . . . . . 1 . Unreport Threat 3 | . . . . . . . . . . . . . . . . . . 1 . . . . 1 . 1 Locate Traps 2 | . . . . . . . . . . . . . . . . . . 1 . . . . . . 1 Reprogram Traps 1 | . . . . . . . . . . . . . . . . . . . . . . . . 1 . Dispatch Records 1 | . . . . . . . . . . . . . . . . . . . . . . . . 1 . Maintenance Status 2 | . . . . . . . . . . . . . . . . . . . . . . . 1 . 1 Surveillance Status 1 | . . . . . . . . . . . . . . . . . . . . . . . 1 . . Transport Status 1 | . . . . . . . . . . . . . . . . . . . . . . . 1 . . Registered Components 1 | . . . . . . . . . . . . 1 . . . . . . . . . . . . . Zone Layout 4 | . . . . . . . . . . . . 1 . . . . . . . . . . 1 1 1 Proto ID Catalog 1 | . . . . . 1 . . . . . . . . . . . . . . . . . . . . Protovariant Controls 1 | . . . . . . . . . . . . . . . . . . . . . . . 1 . . Fabricator Hacks 4 | . . . . . . . . . . . . . . . . . . . . . . 3 . 1 . Load Schematic 2 | . . . . . . . . . . . . . . . . . . . . . . 1 . 1 . Build 2 | . . . . . . . . . . . . . . . . . . . . . . 2 . . . Repair Station Hacks 16 | . . . . . . . . . . . . . . . . . 2 . . . . 7 3 2 2 Scan Component 9 | . . . . . . . . . . . . . . . . . 1 . . . . 4 2 1 1 Repair 7 | . . . . . . . . . . . . . . . . . 1 . . . . 3 1 1 1 Recycling Unit Hacks . | . . . . . . . . . . . . . . . . . . . . . . . . . . Scanalyzer 7 | . . . . . . . . . . . . 3 . . . . . . . . . . 4 . . Insert Component 4 | . . . . . . . . . . . . 1 . . . . . . . . . . 3 . . Analyze 3 | . . . . . . . . . . . . 2 . . . . . . . . . . 1 . . Garrison Access Hacks 5 | . . . . . . . . . . . . 1 . . . . . . . . 1 1 1 1 . Seal Access 5 | . . . . . . . . . . . . 1 . . . . . . . . 1 1 1 1 . Unauthorized Hacks 49 | . 4 . . 9 . . . . . . . 5 . . . . 5 6 . . 8 3 3 4 2 Terminals 30 | . 3 . . 3 . . . . . . . 1 . . . . 3 6 . . 8 . 2 2 2 Assimilate 3 | . . . . . . . . . . . . . . . . . . 1 . . 2 . . . . Botnet 9 | . 1 . . 1 . . . . . . . 1 . . . . 1 1 . . . . 1 2 1 Operators 4 | . . . . . . . . . . . . . . . . . 1 1 . . . . 1 . 1 Skim 13 | . 2 . . 2 . . . . . . . . . . . . 1 3 . . 5 . . . . Sabotage 1 | . . . . . . . . . . . . . . . . . . . . . 1 . . . . Fabricators 1 | . . . . . . . . . . . . . . . . . . . . . . . . 1 . Overload 1 | . . . . . . . . . . . . . . . . . . . . . . . . 1 . Repair Stations 1 | . . . . . . . . . . . . 1 . . . . . . . . . . . . . Patch 1 | . . . . . . . . . . . . 1 . . . . . . . . . . . . . Recycling Units 15 | . 1 . . 6 . . . . . . . 3 . . . . 2 . . . . 2 . 1 . Tunnel 8 | . 1 . . 6 . . . . . . . 1 . . . . . . . . . . . . . Fedlink 6 | . . . . . . . . . . . . 2 . . . . 1 . . . . 2 . 1 . Scrapoids 1 | . . . . . . . . . . . . . . . . . 1 . . . . . . . . Scanalyzers 1 | . . . . . . . . . . . . . . . . . . . . . . . 1 . . Researchers 1 | . . . . . . . . . . . . . . . . . . . . . . . 1 . . Garrison Access 1 | . . . . . . . . . . . . . . . . . . . . . . 1 . . . Jam 1 | . . . . . . . . . . . . . . . . . . . . . . 1 . . . Data Cores Recovered 3 | . . . . . . . . . . . . . . . . . . 1 . . 1 1 . . . Used 2 | . . . . . . . . . . . . . . . . . . . . . 1 1 . . . Hacking Detections 60 | . 3 . . 6 . . . . . . . 5 . 1 . . 3 8 1 . 9 7 8 6 3 Full Trace Events 8 | . . . . 1 . . . . . . . . . 1 . . . 1 . . 1 2 1 1 . Feedback Events . | . . . . . . . . . . . . . . . . . . . . . . . . . . Feedback Blocked . | . . . . . . . . . . . . . . . . . . . . . . . . . . Robot Schematics Acquired 5 | . . . . 1 . . . . 3 . . . . . . . . . . . . . 1 . . Robots Built . | . . . . . . . . . . . . . . . . . . . . . . . . . . Authchips . | . . . . . . . . . . . . . . . . . . . . . . . . . . Time . | . . . . . . . . . . . . . . . . . . . . . . . . . . Total Robot Build Rating . | . . . . . . . . . . . . . . . . . . . . . . . . . . Part Schematics Acquired 20 | . . . . . . . . . 15 . . 1 . . . . . . . . . 2 2 . . Parts Built 3 | . . . . . . . . . . . . . . . . . . . . . . 3 . . . Authchips . | . . . . . . . . . . . . . . . . . . . . . . . . . . Time 102 | . . . . . . . . . . . . . . . . . . . . . . 102 . . . Total Part Build Rating 17 | . . . . . . . . . . . . . . . . . . . . . . 17 . . . Parts Repaired 6 | . . . . . . . . . . . . . . . . . 1 . . . . 2 1 1 1 Time 346 | . . . . . . . . . . . . . . . . . 54 . . . . 176 31 54 31 Parts Recycled . | . . . . . . . . . . . . . . . . . . . . . . . . . . Recycled Matter . | . . . . . . . . . . . . . . . . . . . . . . . . . . Retrieved Matter . | . . . . . . . . . . . . . . . . . . . . . . . . . . Retrieved Components . | . . . . . . . . . . . . . . . . . . . . . . . . . . Parts Scanalyzed 2 | . . . . . . . . . . . . 1 . . . . . . . . . . 1 . . Part Schematics Acquired 2 | . . . . . . . . . . . . 1 . . . . . . . . . . 1 . . Parts Damaged 1 | . . . . . . . . . . . . . . . . . . . . . . . 1 . . Bothacking | -11 -10 -10 -10 -9 -9 -6 -6 -6 -6 -6 -5 -5 -5 -5 -5 -4 -4 -4 -4 -4 -4 -3 -3 -2 -2 ------------ Run | Yrd Mat Min Sub Rec Scr Fac Low Low Zio Dee Pro Fac Upp Upp War Pro Fac Ext Cet Arc Hub Res Tes Res Qua Used RIF Installer . | . . . . . . . . . . . . . . . . . . . . . . . . . . Robots Hacked 3 | . . . . . 1 . . . . . . . . . . . . 2 . . . . . . . Non-combat . | . . . . . . . . . . . . . . . . . . . . . . . . . . Combat 3 | . . . . . 1 . . . . . . . . . . . . 2 . . . . . . . Robot Hacks Applied 3 | . . . . . 1 . . . . . . . . . . . . 2 . . . . . . . parse_system 3 | . . . . . 1 . . . . . . . . . . . . 2 . . . . . . . Relay Couplers Released 4 | . . . . . . . . . . . . . . . . . . . . . 4 . . . . Programmers 4 | . . . . . . . . . . . . . . . . . . . . . 4 . . . . Fabnet Peak Effective % . | . . . . . . . . . . . . . . . . . . . . . . . . . . Robots Rewired 28 | . . . . . . . 2 . . . . . . . . . 1 24 . . . 1 . . . Allies Hacked 1 | . . . . . . . . . . . . . . . . . 1 . . . . . . . . Hacks Repelled . | . . . . . . . . . . . . . . . . . . . . . . . . . . Allies | -11 -10 -10 -10 -9 -9 -6 -6 -6 -6 -6 -5 -5 -5 -5 -5 -4 -4 -4 -4 -4 -4 -3 -3 -2 -2 -------- Run | Yrd Mat Min Sub Rec Scr Fac Low Low Zio Dee Pro Fac Upp Upp War Pro Fac Ext Cet Arc Hub Res Tes Res Qua Total Allies 47 | . . . . . . . 2 . . . . . . . . . 6 37 . . 1 1 . . . Largest Group 17 | . . . . . . . 2 2 1 1 . . . . . . 5 17 17 16 16 8 . . . Highest-Rated Group 747 | . . . . . . . 59 59 30 30 . . . . . . 241 747 747 682 682 333 . . . Highest-Rated Ally 159 | . . . . . . . 30 30 30 30 . . . . . . 50 159 51 51 51 51 . . . Total Orders 7 | . . . . . . . . . . 2 . . . . . . . . . . 5 . . . . STAY 5 | . . . . . . . . . . 1 . . . . . . . . . . 4 . . . . FOLLOW 2 | . . . . . . . . . . 1 . . . . . . . . . . 1 . . . . Ally Attacks 464 | . . . . . . . . 1 . 5 . . . . . . 77 168 41 9 96 67 . . . Total Damage 12764 | . . . . . . . . 20 . 414 . . . . . . 1756 4419 1112 217 2661 2165 . . . Kills 74 | . . . . . . . . . . 5 . . . . . . 10 27 8 1 16 7 . . . Allies Corrupted 2 | . . . . . . . . . . . . . . . . . 1 . . . 1 . . . . Allies Melted 3 | . . . . . . . . . . . . . . . 1 . . 1 . . . 1 . . . Intel | -11 -10 -10 -10 -9 -9 -6 -6 -6 -6 -6 -5 -5 -5 -5 -5 -4 -4 -4 -4 -4 -4 -3 -3 -2 -2 ------- Run | Yrd Mat Min Sub Rec Scr Fac Low Low Zio Dee Pro Fac Upp Upp War Pro Fac Ext Cet Arc Hub Res Tes Res Qua Active Infowar (turns) 22376 | 97 765 1135 1756 103 327 652 1139 848 1358 398 1012 1806 1065 1845 579 514 761 948 241 1853 687 850 467 514 656 Optics 2 | . . . . . . . . . . . . . . . . . . . . . . . 2 . . Sensors 4068 | . . . . . . . 972 848 1318 5 . . . . . . 517 . . . . . . . 408 A.S.S. 72 | . . . . . . . . . . . . . . . . . 72 . . . . . . . . IFF 8638 | . . . . . 327 652 168 . . 292 997 1632 1060 1444 525 366 42 946 . . . 187 . . . Terrain 57 | . . . . . . . . . . . . . . . . . . . . . . . . . 57 Structural 1673 | . . . . . . . 166 . . . . . . . . . . . . . 23 373 . 455 656 Seismic 6553 | 97 765 1135 1756 103 . 621 . . . 264 1008 803 . . . . . . . . . 1 . . . Cloaking 5531 | . . . . . . . . . 40 . . 1050 113 1589 345 . . 54 241 1702 196 . 156 45 . Jamming 11042 | . . . . . . . . . . . . 883 1065 1845 579 148 310 948 241 1853 687 850 467 514 652 ECM 56 | . . . . . . . . . . . . . . . . . . . . . . 14 42 . . Robot Analysis Total 2 | . . . . 1 . . . . . . . . . . . . . . . . . . . 1 . Derelict Logs Recovered 17 | . . 3 . . 5 . 1 2 2 . 1 . 1 1 . 1 . . . . . . . . . Drone Launches . | . . . . . . . . . . . . . . . . . . . . . . . . . . Drone Recoveries . | . . . . . . . . . . . . . . . . . . . . . . . . . . Exploration | -11 -10 -10 -10 -9 -9 -6 -6 -6 -6 -6 -5 -5 -5 -5 -5 -4 -4 -4 -4 -4 -4 -3 -3 -2 -2 ------------- Run | Yrd Mat Min Sub Rec Scr Fac Low Low Zio Dee Pro Fac Upp Upp War Pro Fac Ext Cet Arc Hub Res Tes Res Qua Turns Passed 30785 | 234 765 1135 1756 1187 3619 652 1928 848 1784 1394 1628 1806 1065 1845 1094 599 813 956 241 1853 687 884 487 517 1008 Spaces Moved 23024 | 115 396 596 1010 788 2732 296 1187 609 1403 1366 1549 1193 865 1418 834 445 751 783 187 886 575 919 675 718 728 Core 901 | 5 . . . . 312 . . . . . . . . . . . . . . 444 . . . 20 120 Treads 1119 | 110 396 596 12 . . 4 . . . 1 . . . . . . . . . . . . . . . Legs 9296 | . . . . . . 98 445 609 1403 701 888 1193 865 1418 834 445 397 . . . . . . . . Wheels 5673 | . . . 998 788 2420 194 742 . . . . . . . . . . . . . . . . . 531 Hover 6035 | . . . . . . . . . . 664 661 . . . . . 354 783 187 442 575 919 675 698 77 Flight . | . . . . . . . . . . . . . . . . . . . . . . . . . . Fastest Speed 30 | 50 160 160 95 120 50 110 110 120 120 44 44 110 110 110 102 110 38 30 50 50 50 45 52 48 41 Average Speed 109 | 156 160 160 146 142 129 131 148 134 123 85 85 115 110 113 110 111 73 49 51 175 50 47 52 50 101 Slowest Speed 400 | 160 160 160 320 145 145 400 330 190 125 240 120 117 110 192 113 112 115 116 107 300 50 56 52 56 370 Overloaded Moves 15 | . . . . . . . . . . . . . . . . . . 15 . . . . . . . Propulsion Burnouts . | . . . . . . . . . . . . . . . . . . . . . . . . . . Robots Hopped . | . . . . . . . . . . . . . . . . . . . . . . . . . . Potential Cave-ins . | . . . . . . . . . . . . . . . . . . . . . . . . . . Cave-ins Triggered . | . . . . . . . . . . . . . . . . . . . . . . . . . . Exploration Rate (%) 63 | 6 62 100 49 99 94 7 91 78 90 68 91 25 87 86 89 61 16 72 56 99 50 24 83 27 42 Regions Visited 25 Branch Regions 19 Pre-discovered Areas 18 | . 1 2 . 6 4 . . . . . . 2 . . . 1 . . . . 2 . . . . Known Exits Taken 13 | . . . . . 1 1 1 1 . 1 1 1 1 . . . 1 . . . 1 1 1 1 . Unknown Exits Taken 12 | 1 1 1 1 1 . . . . 1 . . . . 1 1 1 . 1 1 1 . . . . . Scrap Searched 35 | . . 1 3 . 5 . 4 6 3 . 4 . 3 4 . 2 . . . . . . . . . Spaces Dug 20 | . . 3 . . . . . . . . . 3 2 1 . . 6 . . . . 2 . 2 1 Terrain Destroyed 397 | . 7 22 84 . . . 52 11 . 41 . 37 2 1 6 51 17 44 . . . 2 . 19 1 Melee 17 | . . . . . . . . . . . . 3 2 1 . . 6 . . . . 2 . 2 1 Projectile 5 | . . . 5 . . . . . . . . . . . . . . . . . . . . . . AOE 375 | . 7 22 79 . . . 52 11 . 41 . 34 . . 6 51 11 44 . . . . . 17 . Terrain Rammed . | . . . . . . . . . . . . . . . . . . . . . . . . . . Walls Destroyed . | . . . . . . . . . . . . . . . . . . . . . . . . . . Machines Disabled . | . . . . . . . . . . . . . . . . . . . . . . . . . . Actions | -11 -10 -10 -10 -9 -9 -6 -6 -6 -6 -6 -5 -5 -5 -5 -5 -4 -4 -4 -4 -4 -4 -3 -3 -2 -2 --------- Run | Yrd Mat Min Sub Rec Scr Fac Low Low Zio Dee Pro Fac Upp Upp War Pro Fac Ext Cet Arc Hub Res Tes Res Qua Total 27442 | 145 497 753 1222 847 2809 477 1304 636 1440 1543 1801 1479 967 1594 978 515 961 1223 318 1173 928 1291 778 833 930 Wait 2300 | 6 68 127 107 35 2 82 26 5 7 45 154 114 79 116 34 37 77 168 101 260 282 215 48 34 71 Move 22998 | 114 395 595 1009 787 2731 295 1186 608 1402 1365 1548 1192 864 1417 833 444 750 781 186 885 574 918 674 717 728 Hop . | . . . . . . . . . . . . . . . . . . . . . . . . . . Pick Up 223 | 6 6 3 21 3 40 4 4 4 5 15 12 11 3 2 6 . 11 9 1 1 3 15 2 8 28 Fast Attach 252 | 7 . . 2 3 2 13 14 5 1 22 8 17 4 7 29 2 25 15 8 7 2 18 7 6 28 Attach 114 | . . . 7 1 4 5 7 1 2 5 5 7 2 . 3 6 6 17 . . 2 12 2 10 10 Detach 48 | . . . . 2 3 . 4 1 . 2 1 1 . 1 2 3 3 11 . 1 1 6 2 3 1 Swap 148 | . 4 5 10 3 4 3 5 1 11 14 15 18 1 6 9 2 5 7 2 1 7 6 3 1 5 Drop 331 | . 4 6 7 8 22 10 6 7 7 36 20 22 6 7 34 . 31 21 10 8 5 23 9 10 12 Fire 137 | 12 19 17 18 . . . . 2 . 4 . . . . 2 6 3 53 . . . . . 1 . Melee 779 | . . . 41 5 1 59 33 2 5 34 36 97 8 38 24 15 41 100 10 10 34 66 31 42 47 Ram 1 | . . . . . . . . . . . . . . . . . . . . . . . . 1 . Kick 1 | . . . . . . . . . . . . . . . . . 1 . . . . . . . . Crush 1 | . 1 . . . . . . . . . . . . . . . . . . . . . . . . Escape Stasis 49 | . . . . . . 5 . . . . . . . . . . 3 41 . . . . . . . Rewire 23 | . . . . . . . 16 . . . . . . . 2 . 5 . . . . . . . . Trap 35 | . . . . . . 1 3 . . 1 . . . . . . . . . . 18 12 . . . Miscellaneous 2 | . . . . . . . . . . . 2 . . . . . . . . . . . . . . Route ------- -11/Scrapyard -10/Materials (discovered 2 exits: [*Mat] / [*Min]) -10/Mines (discovered 3 exits: [*Mat x2] / [*Sub]) -10/Subcaves (discovered 3 exits: [*Mat x2] / *Rec) -9/Recycling (discovered 2 exits: [*Fac] / *Scr) -9/Scraptown (discovered 2 exits: *Fac x2) -6/Factory (discovered 6 exits: Fac x4 / *Low x2) -6/Lower Caves -6/Lower Caves (discovered 2 exits: *Fac / *Zio) -6/Zion (discovered 2 exits: [*Dee] / *Pro) -6/Deep Caves -5/Proximity Caves -5/Factory (discovered 2 exits: *Fac / *Upp) -5/Upper Caves -5/Upper Caves (discovered 2 exits: *Fac / *War) -5/Warlord -4/Proximity Caves -4/Factory (discovered 6 exits: Res x3 / *Upp / *Ext x2) -4/Extension (discovered 2 exits: *Res / *Cet) -4/Cetus (discovered 2 exits: *Res / *Arc) -4/Archives (discovered 3 exits: *Res / *Hub x2) -4/Hub_04(d) (discovered 4 exits: *Res x4) -3/Research (discovered 4 exits: Res x3 / *Tes) -3/Testing -2/Research (discovered 4 exits: Acc x2 / *Qua x2) -2/Quarantine (discovered 1 exit: Acc) History --------- Turn | Location | Event 35 | -11/Scrapyard | Discovered new exit (range 16) 235 | -11/Scrapyard | Entered Materials 312 | -10/Materials | Build established: Mutant 639 | -10/Materials | Discovered new exit (range 3) 745 | -10/Materials | Discovered new exit (range 15) 1000 | -10/Materials | Entered Mines 1226 | -10/Mines | Received a Rocket Launcher from a helpful Derelict 1270 | -10/Mines | Discovered new exit (range 13) 1282 | -10/Mines | Learned Materials terminal intel 1486 | -10/Mines | Learned location of Mines (-9) 1682 | -10/Mines | Found a hidden stash of uninstalled traps 1766 | -10/Mines | Learned Materials emergency access door positions 1896 | -10/Mines | Discovered new exit (range 14) 1897 | -10/Mines | Discovered new exit (range 6) 1952 | -10/Mines | A weapon hastily lodged in a ceiling crevice suddenly fell to the ground 2026 | -10/Mines | Learned location of Storage (-9) 2135 | -10/Mines | Entered Subcaves 2529 | -10/Subcaves | Discovered new exit (range 15) 2585 | -10/Subcaves | Core integrity fell below 50% 2866 | -10/Subcaves | Shifting Twisted Machinery released Sub. Beam Cannon 2867 | -10/Subcaves | Shifting Twisted Machinery released Battle Cannon 2868 | -10/Subcaves | Discovered new exit (range 13) 3297 | -10/Subcaves | Disturbed a concealed Subdweller 3653 | -10/Subcaves | Discovered new exit (range 10) 3891 | -10/Subcaves | Entered Recycling 4266 | -9/Recycling | Discovered new exit (range 15) 4540 | -9/Recycling | Scanned before Scraplab entrance 4565 | -9/Recycling | Build established: Scavenger-Mutant 5058 | -9/Recycling | Entered Scraplab 5074 | -9/Recycling | Discovered new exit (range 3) 5078 | -9/Recycling | Entered Scraptown 5102 | -9/Scraptown | Heard Great Nut preacher, LISTEN AND RECITE! 5421 | -9/Scraptown | Scanned Subdweller tech in exchange for log data 5424 | -9/Scraptown | Learned Research emergency access door positions 5425 | -9/Scraptown | Learned location of 1 exit from Factory 5426 | -9/Scraptown | Learned location of Warlord (-5) 5428 | -9/Scraptown | Learned Factory emergency access door positions 5429 | -9/Scraptown | Learned location of 1 exit from Proximity Caves 5448 | -9/Scraptown | Discovered new exit (range 7) 5569 | -9/Scraptown | Visited CR-KLE's Repair Center 5589 | -9/Scraptown | Visited Red Mages 5644 | -9/Scraptown | Visited Awakened 5924 | -9/Scraptown | Visited Cave Peace 5959 | -9/Scraptown | Visited Fellowship of the Rings 6031 | -9/Scraptown | Visited CPS Storage 6067 | -9/Scraptown | Visited TADAMA 6101 | -9/Scraptown | Visited UFD Registry 6101 | -9/Scraptown | Registered with UFD as "Protonlauncher" 6365 | -9/Scraptown | Visited Cartography Club 6401 | -9/Scraptown | Visited Science Guys 6459 | -9/Scraptown | Visited A0-MCA Data Center 6485 | -9/Scraptown | Visited Science Testing Area 6504 | -9/Scraptown | Visited Sword Containment 6528 | -9/Scraptown | Visited Scrapoid Pod Storage 6614 | -9/Scraptown | Visited LU-1G1's Boring Crew 6689 | -9/Scraptown | Delivered Scrap Shield to a Scientist 6850 | -9/Scraptown | Visited Derelict Rescue Squad 6859 | -9/Scraptown | Found DRS Beacon 6891 | -9/Scraptown | Visited Curators Association 6937 | -9/Scraptown | Visited Scrap Suit Storage 7037 | -9/Scraptown | Found Surveybot 17 Chip 7066 | -9/Scraptown | Learned location of Archives (-4) 7066 | -9/Scraptown | Learned location of Testing (-3) 7066 | -9/Scraptown | Learned 16 Materials zone layouts 7066 | -9/Scraptown | Learned 12 Factory zone layouts 7066 | -9/Scraptown | Learned 16 Factory zone layouts 7066 | -9/Scraptown | Learned 16 Research zone layouts 7066 | -9/Scraptown | Learned 4 Access zone layouts 7066 | -9/Scraptown | Learned 20 Upper Caves zone layouts 7066 | -9/Scraptown | Learned 4 Mines zone layouts 7066 | -9/Scraptown | Learned 12 Proximity Caves zone layouts 7066 | -9/Scraptown | Learned 24 Proximity Caves zone layouts 7066 | -9/Scraptown | Learned 4 Hub_04(d) zone layouts 7066 | -9/Scraptown | Learned Storage emergency access door positions 7066 | -9/Scraptown | Learned location of 2 exits from Factory 7066 | -9/Scraptown | Learned location of 2 exits from Research 7066 | -9/Scraptown | Identified exit to Factory 7078 | -9/Scraptown | Found Deep Structural Scanner 7327 | -9/Scraptown | Given a C rating by A0-MCA 7333 | -9/Scraptown | Found A0-MCA's Component Scanner 7337 | -9/Scraptown | Build established: Mutant 8228 | -9/Scraptown | Guru changed UFD alias to "Shockmachine" 8423 | -9/Scraptown | CR-KLE repaired 5 parts 8629 | -9/Scraptown | Met Optimus 8629 | -9/Scraptown | Accepted into 0bPrime 8697 | -9/Scraptown | Entered Factory 8697 | -6/Factory | Evolved 8 slots: Power x1, Propulsion x3, Utility x4 8698 | -6/Factory | Identified exit to Factory 8699 | -6/Factory | Identified exit to Lower Caves 8700 | -6/Factory | Discovered exit to Lower Caves (range 13) 9022 | -6/Factory | Build established: Scavenger-Mutant 9074 | -6/Factory | Lost 4 parts (1p1n2u) 9349 | -6/Factory | Entered Lower Caves 9351 | -6/Lower Caves | UFD Scientist delivered a prototype 9354 | -6/Lower Caves | Found Enh. Scrap Shield 9373 | -6/Lower Caves | Lost 3 parts (1p1n1u) 9557 | -6/Lower Caves | Encountered a Warlord checkpoint 9842 | -6/Lower Caves | Identified exit to Lower Caves 10890 | -6/Lower Caves | Attracted the attention of an 0b10 outpost 10941 | -6/Lower Caves | Lost 7 parts (2p3n2u) 10965 | -6/Lower Caves | Core integrity fell below 50% 10983 | -6/Lower Caves | Lost 4 parts (4n) 11277 | -6/Lower Caves | Entered another Lower Caves area 11277 | -6/Lower Caves | Accompanied by 2 allies 11368 | -6/Lower Caves | Discovered exit to Factory (range 4) 11638 | -6/Lower Caves | Learned Factory emergency access door positions 11824 | -6/Lower Caves | Found DRS Beacon 11946 | -6/Lower Caves | Discovered new exit (range 8) 11950 | -6/Lower Caves | Encountered a Warlord checkpoint 11957 | -6/Lower Caves | Identified exit to Zion 12125 | -6/Lower Caves | Entered Zion 12125 | -6/Zion | Accompanied by 1 ally 12126 | -6/Zion | Identified exit to Proximity Caves 12184 | -6/Zion | System corruption cleaned by Quarantine Array 12415 | -6/Zion | Acquired unknown access codes intercepted by a Zionite 12518 | -6/Zion | Visited the Megawrench Repair Shop 12774 | -6/Zion | Build established: Derelict-Mutant 12986 | -6/Zion | Given the Hacking Drone Bay 12987 | -6/Zion | Found Prototype Device 13117 | -6/Zion | Learned Factory stockpile data 13185 | -6/Zion | Turned away by Imprinter 13315 | -6/Zion | Identified Hacking Drone Bay 13500 | -6/Zion | Megawrench repaired 13 parts 13885 | -6/Zion | Opened final containment barrier to the Deep Caves 13904 | -6/Zion | Discovered new exit (range 3) 13904 | -6/Zion | Saw the warning signs outside the Deep Caves entrance 13909 | -6/Zion | Entered Deep Caves 13909 | -6/Deep Caves | Accompanied by 1 ally 13910 | -6/Deep Caves | Identified exit to Proximity Caves 14356 | -6/Deep Caves | Attacked by Z-Imprinter 14362 | -6/Deep Caves | Destroyed Z-Imprinter 14473 | -6/Deep Caves | Found Prototype Protection 14473 | -6/Deep Caves | Identified Zio. Weapon Casing 14560 | -6/Deep Caves | Found Zio. Weapon Casing 14829 | -6/Deep Caves | Z-Facility disabled 14933 | -6/Deep Caves | Lost 6 parts (2p3n1u) 14985 | -6/Deep Caves | Found Prototype Protection 14985 | -6/Deep Caves | Identified Zio. Heavy Carapace 15212 | -6/Deep Caves | Build established: Scavenger-Mutant 15303 | -6/Deep Caves | Entered Proximity Caves 15305 | -5/Proximity Caves | Activated DRS Beacon 15996 | -5/Proximity Caves | Learned location of 1 exit from Upper Caves 16256 | -5/Proximity Caves | Attracted the attention of an 0b10 checkpoint 16259 | -5/Proximity Caves | Activated DRS Beacon 16282 | -5/Proximity Caves | Core integrity fell below 20% 16389 | -5/Proximity Caves | Spotted B-75 Beast 16931 | -5/Proximity Caves | Entered Factory 16931 | -5/Factory | Evolved 2 slots: Utility x2 16932 | -5/Factory | Identified exit to Upper Caves 17079 | -5/Factory | Discovered new exit (range 10) 17153 | -5/Factory | Garrison activated, responded to threat 18084 | -5/Factory | Found Prototype Launcher 18084 | -5/Factory | Identified Mni. Smartbomb Launcher 18107 | -5/Factory | Found Prototype Processor 18107 | -5/Factory | Identified Exp. Targeting Computer 18214 | -5/Factory | Loaded intel: 8 recycling unit locations 18256 | -5/Factory | System corruption reached 10% 18383 | -5/Factory | Build established: Mutant 18649 | -5/Factory | Learned location of Protoforge (-2) 18737 | -5/Factory | Entered Upper Caves 18738 | -5/Upper Caves | Identified exit to Upper Caves 19037 | -5/Upper Caves | Learned Factory stockpile data 19336 | -5/Upper Caves | Found Alien Artifact 19336 | -5/Upper Caves | Identified Dimensional Node Initializer 19336 | -5/Upper Caves | Initialized slip node 19758 | -5/Upper Caves | Spotted B-75 Beast 19802 | -5/Upper Caves | Entered another Upper Caves area 19827 | -5/Upper Caves | Discovered new exit (range 15) 19995 | -5/Upper Caves | Build established: Infiltrator-Mutant 20035 | -5/Upper Caves | Attracted the attention of an 0b10 checkpoint 20084 | -5/Upper Caves | Learned location of 1 exit from Factory 20248 | -5/Upper Caves | Attracted the attention of an 0b10 base 20447 | -5/Upper Caves | Learned Armory garrison access intel 20447 | -5/Upper Caves | Learned Extension garrison access intel 20447 | -5/Upper Caves | Learned Armory security intel 20930 | -5/Upper Caves | Discovered new exit (range 9) 21647 | -5/Upper Caves | Entered Warlord 21788 | -5/Warlord | Learned Testing trap positions 21788 | -5/Warlord | Learned Testing emergency access door positions 21789 | -5/Warlord | Learned 4 Command zone layouts 21790 | -5/Warlord | Learned Testing security intel 21790 | -5/Warlord | Learned Factory recycling unit intel 22125 | -5/Warlord | Visited the Vortex Lab 22130 | -5/Warlord | Found Prototype Energy Gun 22130 | -5/Warlord | Identified Vortex Rifle 22141 | -5/Warlord | Warlord's base attacked by MAIN.C 22206 | -5/Warlord | Found Prototype Device 22206 | -5/Warlord | Identified Exp. Focal Shield 22209 | -5/Warlord | Found Prototype Processor 22209 | -5/Warlord | Identified Exp. Core Analyzer 22288 | -5/Warlord | Build established: Mutant 22372 | -5/Warlord | Warlord forces counterattacked 22505 | -5/Warlord | Lost 5 parts (1p1n3u) 22535 | -5/Warlord | Discovered new exit (range 14) 22546 | -5/Warlord | Lost 14 allies 22590 | -5/Warlord | Lost 4 allies 22642 | -5/Warlord | Spotted Striker 22647 | -5/Warlord | Spotted Executioner 22658 | -5/Warlord | Core integrity fell below 50% 22690 | -5/Warlord | Lost 7 allies 22741 | -5/Warlord | Entered Proximity Caves 22751 | -4/Proximity Caves | Build established: Scavenger-Mutant 22908 | -4/Proximity Caves | Spotter reported a threat 22922 | -4/Proximity Caves | Spotter reported a threat 23017 | -4/Proximity Caves | Received a Behemoth hack from an annoying Tinkerer 23069 | -4/Proximity Caves | Attracted the attention of an 0b10 outpost 23069 | -4/Proximity Caves | Spotter reported a threat 23083 | -4/Proximity Caves | Spotter reported a threat 23155 | -4/Proximity Caves | Spotter reported a threat 23203 | -4/Proximity Caves | Lost 5 parts (1p1n3u) 23208 | -4/Proximity Caves | Spotter reported a threat 23212 | -4/Proximity Caves | Spotted B-86 Titan 23221 | -4/Proximity Caves | Destroyed 9 combat bots 23261 | -4/Proximity Caves | Learned location of Quarantine (-2) 23279 | -4/Proximity Caves | Spotter reported a threat 23295 | -4/Proximity Caves | Spotter reported a threat 23330 | -4/Proximity Caves | Discovered new exit (range 9) 23340 | -4/Proximity Caves | Entered Factory 23340 | -4/Factory | Evolved 2 slots: Utility x2 23341 | -4/Factory | Forged Quantum Companion 23341 | -4/Factory | Identified exit to Research 23341 | -4/Factory | Identified exit to Extension 23342 | -4/Factory | Identified exit to Upper Caves 23344 | -4/Factory | Loaded intel: 8 recycling unit locations 23372 | -4/Factory | Discovered exit to Extension (range 13) 23518 | -4/Factory | Repaired Centrium Light Armor Plating 23590 | -4/Factory | Search patrols dispatched 23640 | -4/Factory | Scrapoid reinforcements arrived 23734 | -4/Factory | Loaded intel: 7 recycling unit locations 23840 | -4/Factory | Search patrols dispatched 23986 | -4/Factory | Found Active Sensor Suite 24090 | -4/Factory | First assault squad dispatched 24153 | -4/Factory | Entered Extension 24301 | -4/Extension | Rescued a captive Derelict 24403 | -4/Extension | First assault squad dispatched 24416 | -4/Extension | Rescued a captive Derelict 24417 | -4/Extension | Rescued a captive Derelict 24420 | -4/Extension | Rescued a captive Derelict 24477 | -4/Extension | Lost 3 allies 24515 | -4/Extension | Rescued A7 24635 | -4/Extension | Spotted B-86 Titan 24635 | -4/Extension | Spotted B-86 Titan 24657 | -4/Extension | Allies destroyed B-86 Titan 24669 | -4/Extension | Destroyed B-86 Titan 24694 | -4/Extension | Extracted ID and sensor layout for unrecognized location from A7's data core 24707 | -4/Extension | Lost 3 allies 24788 | -4/Extension | Lost 5 allies 24842 | -4/Extension | Rescued a captive Derelict 24843 | -4/Extension | Rescued a captive Derelict 24846 | -4/Extension | Rescued a captive Derelict 24850 | -4/Extension | Rescued a captive Derelict 24873 | -4/Extension | Rescued a captive Derelict 24960 | -4/Extension | Lost 6 allies 24999 | -4/Extension | Rescued a captive Derelict 25007 | -4/Extension | Rescued a captive Derelict 25010 | -4/Extension | Rescued a captive Derelict 25030 | -4/Extension | Rescued a captive Derelict 25041 | -4/Extension | Discovered exit to Research (range 10) 25042 | -4/Extension | Discovered new exit (range 6) 25109 | -4/Extension | Entered Cetus 25109 | -4/Cetus | Accompanied by 17 allies 25139 | -4/Cetus | Spotted Cetus Guard 25140 | -4/Cetus | Spotted Cetus Guard 25141 | -4/Cetus | Spotted Cetus Guard 25147 | -4/Cetus | Allies destroyed Cetus Guard 25152 | -4/Cetus | Allies destroyed Cetus Guard 25153 | -4/Cetus | Allies destroyed Cetus Guard 25218 | -4/Cetus | Discovered new exit (range 15) 25253 | -4/Cetus | Spotted Cetus Guard 25253 | -4/Cetus | Spotted Cetus Guard 25254 | -4/Cetus | Allies destroyed Cetus Guard 25255 | -4/Cetus | Spotted Cetus Guard 25259 | -4/Cetus | Discovered exit to Research (range 16) 25261 | -4/Cetus | Allies destroyed Cetus Guard 25268 | -4/Cetus | Destroyed Cetus Guard 25269 | -4/Cetus | Met Revision 17 25350 | -4/Cetus | Entered Archives 25350 | -4/Archives | Accompanied by 16 allies 25365 | -4/Archives | Discovered new exit (range 16) 25527 | -4/Archives | Discovered exit to Research (range 15) 25613 | -4/Archives | Discovered new exit (range 15) 25630 | -4/Archives | Unable to access archive contents 25673 | -4/Archives | Unable to access archive contents 25673 | -4/Archives | Unable to access archive contents 25673 | -4/Archives | Unable to access archive contents 25673 | -4/Archives | Unable to access archive contents 25673 | -4/Archives | Unable to access archive contents 25673 | -4/Archives | Unable to access archive contents 27203 | -4/Archives | Entered Hub_04(d) 27203 | -4/Hub_04(d) | Accompanied by 16 allies 27295 | -4/Hub_04(d) | Discovered exit to Research (range 14) 27656 | -4/Hub_04(d) | Learned 4 Quarantine zone layouts 27708 | -4/Hub_04(d) | Learned Research security intel 27709 | -4/Hub_04(d) | Learned 2 Upper Caves zone layouts 27717 | -4/Hub_04(d) | Learned 2 Upper Caves zone layouts 27736 | -4/Hub_04(d) | Learned location of 1 exit from Research 27761 | -4/Hub_04(d) | Network Hub disabled 27761 | -4/Hub_04(d) | Network Hub disabled 27890 | -4/Hub_04(d) | Entered Research 27890 | -3/Research | Accompanied by 8 allies 27890 | -3/Research | Evolved 2 slots: Propulsion x1, Utility x1 27891 | -3/Research | Identified exit to Research 27892 | -3/Research | Identified exit to Testing 27992 | -3/Research | Spotted B-86 Titan 28016 | -3/Research | Destroyed B-86 Titan 28043 | -3/Research | Lost 3 allies 28090 | -3/Research | Revision forces began assault on 0b10 28134 | -3/Research | Repaired Centrium Medium Armor Plating 28147 | -3/Research | Loaded intel: 5 recycling unit locations 28174 | -3/Research | Met up with Revision 17++ 28193 | -3/Research | Repaired Centrium Light Armor Plating 28381 | -3/Research | Central database locked down 28414 | -3/Research | Spotted B-86 Titan 28456 | -3/Research | Destroyed B-86 Titan 28546 | -3/Research | Fabricated Singularity Reactor (x1) 28574 | -3/Research | Fabricated Microactuators (x2) 28590 | -3/Research | Research terminal network offline 28646 | -3/Research | Found Prototype Device 28646 | -3/Research | Identified Exp. Thermal Shield 28774 | -3/Research | Entered Testing 28775 | -3/Testing | Loaded intel: 17 trap records 28838 | -3/Testing | Found Prototype Hackware 28864 | -3/Testing | Unstable Terrabomb Derivative detonated 28921 | -3/Testing | Found Prototype Device 28921 | -3/Testing | Identified Exp. Transmission Jammer 28977 | -3/Testing | Identified Ghost Barrier 29024 | -3/Testing | First assault squad dispatched 29082 | -3/Testing | Repaired Broken Antigrav Array 29132 | -3/Testing | Found Prototype Device 29132 | -3/Testing | Identified 2N-1CE's Frost Array 29261 | -3/Testing | Entered Research 29261 | -2/Research | Evolved 2 slots: Utility x2 29262 | -2/Research | Identified exit to Access 29306 | -2/Research | Identified exit to Quarantine 29490 | -2/Research | Spotted B-90 Cyclops 29520 | -2/Research | Loaded intel: 5 recycling unit locations 29616 | -2/Research | Destroyed 7 combat bots 29704 | -2/Research | Repaired Centrium Medium Armor Plating? 29706 | -2/Research | Spotted B-90 Cyclops 29761 | -2/Research | First assault squad dispatched 29768 | -2/Research | Core integrity fell below 50% 29773 | -2/Research | Spotted B-90 Cyclops 29778 | -2/Research | Entered Quarantine 29806 | -2/Quarantine | Lost 19 parts (3p6n9u1w) 29826 | -2/Quarantine | Found Unknown Device 29826 | -2/Quarantine | Identified Heavy Servo Lattice 30109 | -2/Quarantine | Core integrity fell below 20% 30355 | -2/Quarantine | Lost 4 parts (2n2u) 30560 | -2/Quarantine | Repaired Imp. Antigrav System 30628 | -2/Quarantine | Destroyed 7 combat bots 30628 | -2/Quarantine | Lost 8 parts (5n3u) 30720 | -2/Quarantine | Found Alien Artifact 30720 | -2/Quarantine | Identified Phase Redirector 30774 | -2/Quarantine | System corruption reached 10% 30786 | -2/Quarantine | Destroyed by P-80 Master with Gamma Rifle Last Messages --------------- 30720_ Acquired Alien Artifact. 30720_ Identified Phase Redirector. 30722_ Dropped Phase Redirector. 30742_ G| KCN4O%5HCBAWETJWQSZYL9FX,=35TTP< 30753_ Dropped Imp. Ion Engine. 30753_ Acquired Lgt. Quantum Reactor. 30755_ Dropped Lgt. Antimatter Reactor. 30755_ Acquired Lgt. Quantum Reactor. 30756_ Dropped Quantum Reactor. 30757_ Acquired Lgt. Quantum Reactor. 30758_ System corrupted: Heat flow error (+285). 30773_ Imp. Power Shielding destroyed. 30778_ Destroyed Gamma Rifle. 30778_ Destroyed Imp. Antigrav System. 30779_ Com. Wheel destroyed. 30780_ System corrupted: Matter fused (-8). 30781_ Destroyed Adv. Target Analyzer. 30781_ Destroyed Sml. Battery. 30781_ Quantum Companion surprise attacks P-80 Master. 30783_ Antigrav System destroyed. Map ----- +----------------------------------------------------+ | ??????????## ] + # """ #?????##### | | ??????????## " "" # # "" #????? | | ??????????## "R"" # # #????? | | ??????????## """ # # #????? | | ??????????## # ###########????? """ | | ??????????##########+#### ##??????????????"""" | | ??????????######## ##?????????????? """ | | ?????????????????# # ?????????????? " | | ?????????????????# #??????????????? | | ?????????????????# #???????????????#+### | | ?????????????????######## #???????????????????? | | ????????????????????????# #???????????????????? | | ????????????????????????# #???????????????????? | | ????????????????????????# #???????????????????? | | ????????????????????????# #???????????????????? | | ????????????????????????# #???????????????????? | | ????????????????????????# #???????????????????? | | ????????????????????????# #???????????????????? | | ????????????????????????# #???????????????????? | | ????????????????????????# #???????????????????? | | ????????????#####+####### ##+####### ?????????? | | ????????????" ???????? | | ????????????" ???????? | | ????????????" p ???????? | | ????????????#T##########p######+#########????????? | | ???????????????????# p @ **#???????????????????? | | ???????????????????# """ * *#???????????????????? | | ???????????????????# """ ** #???????????????????? | | ???????????????????# """ #???????????????????? | | ???????????????????# #???????????????????? | | ???????????????????# ""T"" #???????????????????? | | ???????????????????# """"" #???????????????????? | | ???????????????????# #???????????????????? | | ???????????????????###########???????????????????? | | ?????????????????????????????????????????????????? | | | | | | | | | | | | | | | | | | | | | | | | | | | | | | | +----------------------------------------------------+ Best States ------------- Heat Dissipation 100 Energy Generation 46 Energy Capacity 1150 Matter Stores 300 Matter Capacity 300 Sight Range 16 Robot Scan Range 20 Terrain Scan Range 14 Terrain Scan Density 85 ECM Strength 2 Jamming Range 22 Cloak Strength 3 Power Amplification 30 Additional Mass Support 9 Base Temperature (-) 150 Corruption Containment 8 Armor Coverage 1200 Resistance: KI 30 Resistance: TH 30 Power Shielding 66 Propulsion Shielding 33 Utility Shielding 66 Weapon Shielding 100 Melee Speed Boost 20 Phase Shifting 10 Evasion (%) 70 Melee Accuracy 20 Target Analysis 8 Core Analysis 11 Recoil Reduction 2 Force Boost 20 Offensive Hacking 34 Defensive Hacking 10 Trap Extractor Capacity 8 Item Schematics ----------------- Imp. Shock Absorption System | -6/Zion | Archive Imp. Target Analyzer | -6/Zion | Archive Hvy. Flak Cannon | -6/Zion | Archive Adv. Plasma Cannon | -6/Zion | Archive Adv. Transmission Jammer | -6/Zion | Archive Hvy. Plasma Cannon | -6/Zion | Archive Adv. Cooling System | -6/Zion | Archive Phase Cannon | -6/Zion | Archive Hvy. Phase Cannon | -6/Zion | Archive Flexi-carbon Leg | -6/Zion | Archive Imp. Arc Projector | -6/Zion | Archive Focal Shield | -6/Zion | Archive KE Penetrator | -6/Zion | Archive Energy Well | -6/Zion | Archive Imp. Antigrav System | -6/Zion | Archive Antigrav System | -5/Factory | Scanalyzed Imp. Actuator Array | -3/Research | Hacked Microactuators | -3/Research | Hacked Weapon Mount | -3/Testing | Hacked Antigrav Array | -3/Testing | Scanalyzed Robot Schematics ------------------ Y-45 Defender | -9/Recycling | Hacked A-02 Transporter | -6/Zion | Archive R-06 Scavenger | -6/Zion | Archive H-77 Assassin | -6/Zion | Archive P-70 Sage | -3/Testing | Hacked Fabricated ------------ Singularity Reactor | x1 | -3/Research | Preloaded Microactuators | x2 | -3/Research Repaired ---------- Centrium Light Armor Plating | 17% | -4/Factory Centrium Medium Armor Plating | 17% | -3/Research Centrium Light Armor Plating | 38% | -3/Research Antigrav Array | 99% | -3/Testing | Broken Centrium Medium Armor Plating | 11% | -2/Research Imp. Antigrav System | 5% | -2/Quarantine Alien Tech Used ----------------- Dimensional Node Initializer Phase Redirector Achievements -------------- Ambidextrous Challenges ------------ None Game ------ Seed ResetGravjetCorpse Manual? 0 Play Time 05:31:43 Cumulative 507.6 hours Start 2025.05.22 @ 10:26:09 End 2025.05.24 @ 19:24:00 Sessions 7 Manual Loads 0 Difficulty Rogue Special Mode None Game No. 305 Rogue 280 Adventurer 7 Explorer 18 Win Type - Total 39 Types 25/0/6/2/0/1/1/2/0/2 Lore% 93 Gallery% 89 Achievement% 81 Wizard Run 0 Options --------- Layout 0 ASCII 0 Keyboard 0 Movement Numpad Keybinds 0 Fullscreen 1 Font 12/Smallcaps Map View 83x54 Zoom Use 0% Tactical HUD 1 Map Filters NONE Filters NONE Steam 1 RUN: 8716e9d2-cf46-4691-9960-37be0f70179a